Cogmind - Beta 17 @@@ ROGUE MODE // 2026.06.30 @ 22:06:24 Player: D4-RLM Result: Destroyed by VW-EGR(R) with Subdweller Laser Performance ------------- Evolutions (0) 0 Regions Visited (3) 600 Robots Destroyed (14) 70 Value Destroyed (382) 382 Prototype IDs (0) 0 Alien Tech Used (0) 0 Bonus (0) 0 TOTAL SCORE: 1052 Bonus ------- None Cogmind --------- Core Integrity 0/250 Matter 275/300 Energy 106/125 System Corruption 0% Temperature Cool (6) Movement Rolling (110) Location -10/Subcaves Parts ------- > --- POWER (1) -------- Light Ion Engine > --- PROPULSION (2) --- Subdweller Monowheel Subdweller Monowheel > --- UTILITY (2) ------ Large Storage Unit Seismic Detector > --- WEAPON (2) ------- Subdweller Laser Subdweller Machine Gun > --- INVENTORY (15) --- Light Treads Light Treads Light Treads Wheel Wheel Wheel Compact Wheel Large Storage Unit High-capacity Matter Pod (104) Mining Laser Mining Claw Peak State ------------ > --- POWER ------------ Light Ion Engine > --- PROPULSION ------- Subdweller Monowheel Subdweller Monowheel > --- UTILITY ---------- Large Storage Unit Seismic Detector > --- WEAPON ----------- Subdweller Laser Subdweller Machine Gun > --- INVENTORY -------- Light Treads Light Treads Light Treads Wheel Wheel Wheel Compact Wheel Large Storage Unit High-capacity Matter Pod Mining Laser Mining Claw [Rating: 12] Favorites ----------- Power Light Ion Engine Engine Light Ion Engine Propulsion Compact Wheel Wheel Compact Wheel Utility Seismic Detector Device Seismic Detector Storage Large Storage Unit Weapon Assault Rifle Energy Gun EM Pulse Gun Ballistic Gun Assault Rifle Launcher Rocket Launcher Build | -11 -10 -10 -10 ------- Run | Yrd Mat Min Sub Slots Evolved . | . . . . Power . | . . . . Propulsion . | . . . . Utility . | . . . . Weapon . | . . . . Parts Attached 15 | 7 1 . 7 Power 2 | 1 . . 1 Engine 2 | 1 . . 1 Core . | . . . . Reactor . | . . . . Propulsion 4 | 2 . . 2 Treads . | . . . . Leg . | . . . . Wheel 4 | 2 . . 2 Hover . | . . . . Flight . | . . . . Utility 3 | 2 1 . . Device 1 | 1 . . . Storage 2 | 1 1 . . Processor . | . . . . Hackware . | . . . . Protection . | . . . . Artifact . | . . . . Weapon 6 | 2 . . 4 Energy Gun 2 | 1 . . 1 Energy Cannon . | . . . . Ballistic Gun 3 | 1 . . 2 Ballistic Cannon . | . . . . Launcher 1 | . . . 1 Special Weapon . | . . . . Impact Weapon . | . . . . Slashing Weapon . | . . . . Piercing Weapon . | . . . . Special Melee Weapon . | . . . . Unidentified Prototypes . | . . . . Parts Lost 7 | . . . 7 Power 1 | . . . 1 Propulsion 2 | . . . 2 Utility . | . . . . Weapon 4 | . . . 4 Highest Loss Streak 4 | . . . 4 To Critical Strikes . | . . . . Average Backups 10 | 2 5 13 11 Power . | . 1 1 . Propulsion 5 | 1 3 6 7 Utility 1 | . . 1 2 Weapon 2 | . . 3 2 Tool/Special . | . . . . Unused Backups 12 | . . 1 11 Power . | . . . . Propulsion 7 | . . . 7 Utility 2 | . . . 2 Weapon 3 | . . 1 2 Tool/Special . | . . . . Average Slot Usage (%) 98 | . 100 100 93 Engine 13 | . 14 14 12 Wheel 27 | . 28 28 25 Device 14 | . 14 14 14 Storage 14 | . 14 14 14 Energy Gun 12 | . 14 14 8 Ballistic Gun 13 | . 14 14 13 Peak Build Rating 12 | 7 8 8 12 Average Rating 7 | 4 7 8 9 On Entrance 5 | . 7 8 8 Avg Prop Armor Cover (%) . | . . . . Naked Turns . | . . . . Heaviest Build 30 | 13 28 28 30 Greatest Support 40 | 26 26 26 40 Greatest Overweight (x) 1 | . 1 1 1 Average Overweight (x) . | . . 1 . Largest Inventory Capacity 15 | 8 15 15 15 Average Capacity 14 | 7 14 15 15 Most Carried 14 | 3 11 14 14 Average Carried 10 | 2 5 13 11 Final Capacity 15 | 8 15 15 15 Final Carried 14 | 3 11 14 11 Class Distribution -------------------- 96% | Mutant 3% | Scavenger-Mutant Dominant Class ---------------- Mutant | -10/Materials Mutant | -10/Mines Mutant | -10/Subcaves Resources | -11 -10 -10 -10 ----------- Run | Yrd Mat Min Sub Matter Collected 553 | 162 190 33 168 Remotely . | . . . . Salvage Created 626 | 100 301 . 225 Parts 40 | 7 20 . 13 Haulers Intercepted . | . . . . Recyclers Shooed . | . . . . Parts Field Recycled . | . . . . Retrieved Matter . | . . . . Parts Self-Destructed 7 | . . . 7 Prevented . | . . . . Parts Restored . | . . . . Kills | -11 -10 -10 -10 ------- Run | Yrd Mat Min Sub Combat Hostiles Destroyed 10 | . 6 . 4 Guns 8 | . 5 . 3 AOE 2 | . 1 . 1 Classes Destroyed 7 | 2 4 . 1 Worker 1 | . 1 . . Builder 1 | . 1 . . Tunneler 1 | 1 . . . Recycler 1 | 1 . . . Swarmer 1 | . 1 . . Grunt 5 | . 5 . . Subdweller 4 | . . . 4 Best Kill Streak 4 | 2 4 . 1 Combat Bots Only 3 | . 3 . 1 Max Kills in Single Turn 2 | 1 2 . 1 Gunslinging . | . . . . Exploded 1 | . 1 . 1 Melee . | . . . . Uniques/NPCs Destroyed . | . . . . Combat | -11 -10 -10 -10 -------- Run | Yrd Mat Min Sub Hostile Shots Fired 57 | . 26 . 31 Missed 13 | . 9 . 4 Hits 44 | . 17 . 27 Projectile 44 | . 17 . 27 Critical Strikes 1 | . . . 1 Damage Taken 814 | . 218 . 596 Core 250 | . 52 . 198 Absorbed by Shields . | . . . . Core Remaining (%) 100 | 100 . . . Volleys Fired 52 | 5 20 . 27 Largest 2 | 2 2 . 2 Hottest 90 | 60 60 . 90 Shots Fired 91 | 10 40 . 41 Gun 90 | 10 40 . 40 Cannon . | . . . . Launcher 1 | . . . 1 Special . | . . . . Kinetic 50 | 5 20 . 25 Thermal 10 | . . . 10 Explosive 1 | . . . 1 Electromagnetic 30 | 5 20 . 5 Robot Hit Streak 33 | 3 9 . 33 Robot Miss Streak 5 | 2 5 . 1 Penetration Max . | . . . . Secondary Targets . | . . . . Shots Hit Robots 65 | 5 23 . 37 Core Hits 24 | 3 12 . 9 Critical Kills . | . . . . Critical Parts Destroyed . | . . . . Critical Strikes . | . . . . Melee Attacks . | . . . . Impact . | . . . . Slashing . | . . . . Piercing . | . . . . Sneak Attacks . | . . . . Combat Hostiles . | . . . . Follow-up Attacks . | . . . . Damage Inflicted 1028 | 80 407 . 541 Guns 889 | 80 310 . 499 Cannons . | . . . . Explosions 139 | . 97 . 42 Melee . | . . . . Ramming . | . . . . Kinetic 435 | 27 127 . 281 Thermal 272 | . 97 . 175 Explosive 42 | . . . 42 Electromagnetic 279 | 53 183 . 43 Impact . | . . . . Slashing . | . . . . Piercing . | . . . . Highest Corruption . | . . . . Average Corruption . | . . . . Corruption Purged . | . . . . Corruption Blocked . | . . . . Overload Shots . | . . . . Overflow Damage 4 | . . . 4 Projectiles . | . . . . Explosions 4 | . . . 4 Melee . | . . . . Knockbacks . | . . . . Impact . | . . . . Kinetic . | . . . . Secondary . | . . . . Self-Inflicted Damage 63 | . 31 . 32 Shots 2 | . 1 . 1 Rammed . | . . . . Targets Rammed . | . . . . Kicked . | . . . . Crushed . | . . . . Highest Temperature 24 | . 24 . . Average Temperature 16 | . 16 . . Received Heat Transfer 123 | . 87 . 36 Siege Activations . | . . . . Martial Activations . | . . . . Shielding Activations . | . . . . Robots Disrupted . | . . . . Combat Hostiles . | . . . . Robots Corrupted . | . . . . Combat Hostiles . | . . . . Parts Fried . | . . . . Impact Corruptions . | . . . . Robots Melted . | . . . . Combat Hostiles . | . . . . Parts Melted . | . . . . Heat Transferred 425 | . 200 . 225 Parts Sabotaged . | . . . . Parts Stolen . | . . . . Parts Stripped . | . . . . Power Chain Reactions 1 | . 1 . . Alert | -11 -10 -10 -10 ------- Run | Yrd Mat Min Sub Maximum Alert Level . | . . . . Low Security (%) 100 | 100 100 100 . Level 1 . | . . . . Level 2 . | . . . . Level 3 . | . . . . Level 4 . | . . . . Level 5 . | . . . . High Security . | . . . . Max Security . | . . . . Peak Influence 98 | 10 98 36 . Initial 31 | . . 31 . Average 15 | . 33 2 . Influence Increases 249 | 10 234 5 . Destroy 0b10 Robot/C 120 | . 120 . . Destroy 0b10 Robot/NC 20 | 10 10 . . Destroy Leader 20 | . 20 . . Successful Hack 9 | . 4 5 . Disable Machine 15 | . 15 . . Destroy Structure 5 | . 5 . . Lose Combat Pursuer 60 | . 60 . . Influence Decreases 249 | 10 152 87 . Entered New Map 51 | . . 51 . Time Decay 198 | 10 152 36 . Squads Dispatched 1 | . 1 . . Investigation . | . . . . Extermination . | . . . . Reinforcement 1 | . 1 . . Assault . | . . . . Garrison . | . . . . Intercept . | . . . . Searches Triggered . | . . . . Construction Impeded . | . . . . Haulers Reinforced . | . . . . Active Scanning Responses . | . . . . Cargo Convoy Interrupts . | . . . . Stealth | -11 -10 -10 -10 --------- Run | Yrd Mat Min Sub Distress Signals 2 | . 2 . . Communications Jammed . | . . . . Distress Signals . | . . . . Times Spotted 19 | . 13 . 6 Peak Tracking Total 6 | . 6 . 2 Tactical Retreats 4 | . 3 . 1 Traps | -11 -10 -10 -10 ------- Run | Yrd Mat Min Sub Traps Triggered . | . . . . Indirectly . | . . . . Trap Hack Attempts . | . . . . Triggered . | . . . . Disarmed . | . . . . Reprogrammed . | . . . . Reused . | . . . . Traps Extracted . | . . . . Installed . | . . . . Triggered . | . . . . Machines | -11 -10 -10 -10 ---------- Run | Yrd Mat Min Sub Machines Disabled 1 | . 1 . . Max in Single Turn 1 | . 1 . . Machines Repaired . | . . . . Machines Dismantled . | . . . . Machines Sabotaged . | . . . . Overloaded Fab Kills . | . . . . Hacking | -11 -10 -10 -10 --------- Run | Yrd Mat Min Sub Machines Accessed 3 | . 2 1 . Terminals 3 | . 2 1 . Fabricators . | . . . . Repair Stations . | . . . . Recycling Units . | . . . . Scanalyzers . | . . . . Garrison Access . | . . . . Total Hacks 5 | . 3 2 . Successful 3 | . 2 1 . Failed 2 | . 1 1 . Catastrophic . | . . . . Database Lockouts . | . . . . Manual 2 | . 2 . . Terminals 5 | . 3 2 . Fabricators . | . . . . Repair Stations . | . . . . Recycling Units . | . . . . Scanalyzers . | . . . . Garrison Access . | . . . . Terminal Hacks 3 | . 2 1 . Robot Analysis 1 | . 1 . . Emergency Access Points 1 | . 1 . . Zone Layout 1 | . . 1 . Fabricator Hacks . | . . . . Repair Station Hacks . | . . . . Recycling Unit Hacks . | . . . . Scanalyzer . | . . . . Garrison Access Hacks . | . . . . Unauthorized Hacks . | . . . . Terminals . | . . . . Fabricators . | . . . . Repair Stations . | . . . . Recycling Units . | . . . . Scanalyzers . | . . . . Garrison Access . | . . . . Data Cores Recovered . | . . . . Used . | . . . . Hacking Detections 1 | . . 1 . Full Trace Events . | . . . . Feedback Events . | . . . . Feedback Blocked . | . . . . Robot Schematics Acquired . | . . . . Robots Built . | . . . . Authchips . | . . . . Time . | . . . . Total Robot Build Rating . | . . . . Part Schematics Acquired . | . . . . Parts Built . | . . . . Authchips . | . . . . Time . | . . . . Total Part Build Rating . | . . . . Part Studies Acquired . | . . . . Parts Repaired . | . . . . Time . | . . . . Parts Recycled . | . . . . Recycled Matter . | . . . . Retrieved Matter . | . . . . Retrieved Components . | . . . . Parts Scanalyzed . | . . . . Part Schematics Acquired . | . . . . Parts Damaged . | . . . . Bothacking | -11 -10 -10 -10 ------------ Run | Yrd Mat Min Sub Used RIF Installer . | . . . . Robots Hacked . | . . . . Non-combat . | . . . . Combat . | . . . . Robot Hacks Applied . | . . . . Relay Couplers Released . | . . . . Fabnet Peak Effective % . | . . . . Robots Rewired . | . . . . Allies Hacked . | . . . . Hacks Repelled . | . . . . Allies | -11 -10 -10 -10 -------- Run | Yrd Mat Min Sub Total Allies 3 | . . 3 . Largest Group 3 | . . 3 . Highest-Rated Group 40 | . . 40 . Highest-Rated Ally 16 | . . 16 . Total Orders . | . . . . Ally Attacks . | . . . . Total Damage . | . . . . Kills . | . . . . Allies Corrupted . | . . . . Allies Melted . | . . . . Intel | -11 -10 -10 -10 ------- Run | Yrd Mat Min Sub Active Infowar (turns) 1400 | 4 477 639 280 Seismic 1400 | 4 477 639 280 Robot Analysis Total 1 | . 1 . . Derelict Logs Recovered 4 | . . 3 1 Drone Launches . | . . . . Drone Recoveries . | . . . . Exploration | -11 -10 -10 -10 ------------- Run | Yrd Mat Min Sub Turns Passed 1468 | 72 477 639 280 Spaces Moved 1084 | 50 262 597 175 Core 3 | 3 . . . Treads . | . . . . Legs . | . . . . Wheels 1081 | 47 262 597 175 Hover . | . . . . Flight . | . . . . Fastest Speed 50 | 50 90 105 90 Average Speed 103 | 87 102 105 106 Slowest Speed 120 | 100 105 105 120 Overloaded Moves . | . . . . Propulsion Burnouts . | . . . . Robots Hopped . | . . . . Potential Cave-ins . | . . . . Cave-ins Triggered . | . . . . Exploration Rate (%) 41 | 3 51 95 17 Regions Visited 3 Branch Regions 2 Pre-discovered Areas . | . . . . Known Exits Taken . | . . . . Unknown Exits Taken 3 | 1 1 1 . Scrap Searched 3 | . . 3 . Spaces Dug . | . . . . Terrain Destroyed 13 | . 4 . 9 Melee . | . . . . Projectile . | . . . . AOE 13 | . 4 . 9 Terrain Rammed . | . . . . Walls Destroyed . | . . . . Machines Disabled . | . . . . Actions | -11 -10 -10 -10 --------- Run | Yrd Mat Min Sub Total 1331 | 64 429 609 229 Wait 162 | . 138 7 17 Move 1081 | 49 261 596 175 Hop . | . . . . Pick Up 18 | 3 8 4 3 Fast Attach 8 | 7 . . 1 Attach 6 | . . . 6 Detach . | . . . . Swap 1 | . 1 . . Drop 2 | . 1 1 . Fire 52 | 5 20 . 27 Melee . | . . . . Ram . | . . . . Kick . | . . . . Crush . | . . . . Escape Stasis . | . . . . Rewire 1 | . . 1 . Trap . | . . . . Miscellaneous . | . . . . Route ------- -11/Scrapyard -10/Materials (discovered 2 exits: [*Mat] / *Min) -10/Mines (discovered 3 exits: [*Mat x2] / [*Sub]) -10/Subcaves (discovered 1 exit: Mat) History --------- Turn | Location | Event 36 | -11/Scrapyard | Discovered new exit (range 15) 73 | -11/Scrapyard | Entered Materials 304 | -10/Materials | Build established: Mutant 336 | -10/Materials | Discovered new exit (range 8) 387 | -10/Materials | Discovered new exit (range 14) 550 | -10/Materials | Entered Mines 613 | -10/Mines | Discovered new exit (range 7) 658 | -10/Mines | Assisted by bots powering up and referring to "LRC-V3" 707 | -10/Mines | Learned Materials terminal intel 823 | -10/Mines | Discovered new exit (range 6) 833 | -10/Mines | Learned 2 Materials zone layouts 897 | -10/Mines | Received a Rocket Launcher from a helpful Derelict 926 | -10/Mines | Learned Materials emergency access door positions 1182 | -10/Mines | Discovered new exit (range 6) 1189 | -10/Mines | Entered Subcaves 1190 | -10/Subcaves | Approached by a straggling Scientist 1195 | -10/Subcaves | Identified exit to Materials 1263 | -10/Subcaves | Lost 4 parts (1p1n2w) 1312 | -10/Subcaves | Core integrity fell below 50% 1462 | -10/Subcaves | Core integrity fell below 20% 1469 | -10/Subcaves | Destroyed by VW-EGR(R) with Subdweller Laser Last Messages --------------- 01311_ Tech Extrapolator violently self-destructs. 01325_ 56-JUN(R) destroyed. 01325_ Rocket Launcher destroyed. 01325_ Destroyed Rocket Launcher. 01330_ Acquired 51 matter. 01332_ Acquired Sub. Laser. 01336_ The unstable cave ceiling collapses. 01344_ Subatomizers dissect the Sub. Power Source. 01360_ The unstable cave ceiling collapses. 01387_ Com. Wheel destroyed. 01400_ 8A-XDE(R) affixes Scrap Shield Fragment to Scrap Shield. 01413_ 8A-XDE(R) destroyed. 01416_ Acquired 59 matter. 01418_ Acquired Sub. Monowheel. 01459_ Assault Rifle destroyed. 01461_ LF-OTA(R) destroyed. 01464_ Acquired Sub. Machine Gun. Map ----- +----------------------------------------------------+ | ?????????????????????????????????????????????????? | | ?????????????????????????????????????????????????? | | ?????????????????????????????????????????????????? | | ?????????????????????????????????????????????????? | | ?????????????????????????????????????????????????? | | ?????????????????????????????????????????????????? | | ?????????????????????????????????????????????????? | | ?????????????????????????????????????????????????? | | ?????????????????????????????????????????????????? | | ????????????????? ??????????????????????????????? | | ??????????????? ?????????????????????????????? | | ?????????????? ????????????????????????????? | | ??????????????? ????????????????????????????? | | ???????????????? ????????????????????????????? | | ????????????# ??? ???????????????????????????? | | ?????????????? ??? ????????##?????????????????? | | ??????????????? ?? #??????# #?????????????????? | | ????????????????# ?# #?#### #??????????????????? | | ?????????????????# # # ???????????????????? | | ?????????????????? ????????????????????? | | ???????????????????? #?????????????????????? | | ?????????????????????? #??????????????????????? | | ???????????????????????# #???????????????????????? | | ??????????????????????##!#???????????????????????? | | ????????????????"?????#"%##??????????????????????? | | ???????????????"" ## @#####??????#???????????? | | ????????????????""" "R #????? ####????????? | | ????????????????#""" ###?? ?????????? | | ????????????????#""" ## # ## #????????????? | | ????????????????#"""##?#### #?????????????? | | ?????????????????# #?### ## # #?????????????? | | ?????????????????##??#& &## ## #? #?????????????? | | ??????????????????# "##!&& ## ##?#?????????????? | | ?????????????????#" # #"!& # # #####?????????? | | ?????????????????#$?# [ ### # #???????? | | ?????????????????#??# #"" ###????????????? | | ????????????????????### "" ##???????????? | | ???????????????????###### ##??????????? | | ???????????????###?# #### #??????????? | | ?????????????### ## #?## #?????????? | | ?????????????# #### ## ##?????????? | | ?????????????# ## #?? #??????????? | | ?????????????# ##???# #??????????? | | ?????????????# #?????? ??????????? | | ?????????????# # # #?????????????????? | | ?????????????## ## ##### #????????????????? | | ????????????????## ## ## #????????????????? | | ???????????###### ### ### #????????????????? | | ??????????## ##?? ## #????????????????? | | ?????????## ###???# ## #????????????????? | +----------------------------------------------------+ Best States ------------- Heat Dissipation 25 Energy Generation 10 Energy Capacity 125 Matter Stores 300 Matter Capacity 300 Sight Range 16 Terrain Scan Density 10 Evasion (%) 42 Item Schematics ----------------- None Robot Schematics ------------------ None Fabricated ------------ Nothing Repaired ---------- Nothing Studied --------- None Alien Tech Used ----------------- None Achievements -------------- None Challenges ------------ None Game ------ Seed MachineCobblerCasing Manual? 0 Play Time 00:18:10 Cumulative 32.3 hours Start 2026.06.30 @ 21:51:51 End 2026.06.30 @ 22:06:24 Sessions 1 Manual Loads 0 Difficulty Rogue Special Mode None Game No. 46 Rogue 42 Adventurer 4 Explorer 0 Win Type - Total 0 Types 0/0/0/0/0/0/0/0/0/0 Lore% 9 Gallery% 14 Achievement% 14 Wizard Run 0 Options --------- Layout 2 ASCII 0 Keyboard 1 Movement Numpad Keybinds 0 Fullscreen 1 Font 24/Terminus Map View 25x22 Zoom Use 53% Tactical HUD 1 Map Filters NONE Filters NONE Steam 1 RUN: e06199b2-fe96-4e0f-b132-f9642b50eb81